[Event "December 5 Early 2023"]
[Site "https://www.chess.com"]
[Date "2023.12.05"]
[Round "3"]
[White "Johnson, Ben"]
[Black "Tymrakiewicz, Rafal"]
[Result "0-1"]
[Board "227"]
[TimeControl "180+1"]
[WhiteFideId "2010917"]
[BlackFideId "1108832"]
[WhiteElo "2125"]
[BlackElo "2368"]
[WhiteTeam "USA"]
[BlackTeam "POL"]
[WhiteClock "0:00:54"]
[BlackClock "0:00:14"]

1. Nf3 {[%clk 0:03:00]}  d5 {[%clk 0:02:59]} 2. e3 {[%clk 0:03:00]}  c6 {[%clk 0:02:50]} 3. c4 {[%clk 0:03:00]}  Nf6 {[%clk 0:02:45]} 4. Nc3 {[%clk 0:02:59]}  e6 {[%clk 0:02:45]} 5. b3 {[%clk 0:02:58]}  g6 {[%clk 0:02:43]} 6. Bb2 {[%clk 0:02:58]}  Bg7 {[%clk 0:02:44]} 7. Be2 {[%clk 0:02:54]}  O-O {[%clk 0:02:38]} 8. O-O {[%clk 0:02:53]}  Nbd7 {[%clk 0:02:38]} 9. d4 {[%clk 0:02:45]}  Ne4 {[%clk 0:02:14]} 10. Nxe4 {[%clk 0:02:43]}  dxe4 {[%clk 0:02:14]} 11. Nd2 {[%clk 0:02:43]}  f5 {[%clk 0:02:15]} 12. Qc2 {[%clk 0:02:41]}  Qg5 {[%clk 0:01:56]} 13. Rfe1 {[%clk 0:02:16]}  Nf6 {[%clk 0:01:56]} 14. Nf1 {[%clk 0:02:12]}  h5 {[%clk 0:01:52]} 15. f3 {[%clk 0:02:05]}  h4 {[%clk 0:01:46]} 16. fxe4 {[%clk 0:02:02]}  Nxe4 {[%clk 0:01:44]} 17. Bf3 {[%clk 0:02:02]}  e5 {[%clk 0:01:24]} 18. h3 {[%clk 0:01:59]}  Be6 {[%clk 0:01:10]} 19. Rad1 {[%clk 0:01:38]}  Rad8 {[%clk 0:01:09]} 20. dxe5 {[%clk 0:01:30]}  Ng3 {[%clk 0:00:26]} 21. Nxg3 {[%clk 0:01:28]}  Qxg3 {[%clk 0:00:26]} 22. Rd6 {[%clk 0:01:13]}  Rxd6 {[%clk 0:00:25]} 23. exd6 {[%clk 0:01:14]}  Qxd6 {[%clk 0:00:23]} 24. Bxg7 {[%clk 0:01:12]}  Kxg7 {[%clk 0:00:23]} 25. Qc3+ {[%clk 0:01:11]}  Kh7 {[%clk 0:00:20]} 26. Rd1 {[%clk 0:01:11]}  Qc7 {[%clk 0:00:18]} 27. c5 {[%clk 0:01:08]}  Qg7 {[%clk 0:00:18]} 28. Qb4 {[%clk 0:01:01]}  Rf7 {[%clk 0:00:16]} 29. Qxh4+ {[%clk 0:00:59]}  Qh6 {[%clk 0:00:15]} 30. Rc1 {[%clk 0:00:59]}  Qxh4 {[%clk 0:00:14]} 31. Rd1 {[%clk 0:00:54]}  Qf6 {[%clk 0:00:14]} 0-1

[Event "December 5 Early 2023"]
[Site "https://www.chess.com"]
[Date "2023.12.05"]
[Round "3"]
[White "Kleibel, Uwe"]
[Black "Biriukov, Ilja"]
[Result "1-0"]
[Board "228"]
[TimeControl "180+1"]
[WhiteFideId "1270982"]
[BlackFideId "4113373"]
[WhiteElo "2368"]
[BlackElo "2116"]
[WhiteTeam "GER"]
[BlackTeam "RUS"]
[WhiteClock "0:00:15"]
[BlackClock "0:00:03"]

1. e4 {[%clk 0:02:56]}  e6 {[%clk 0:02:58]} 2. d4 {[%clk 0:02:56]}  d5 {[%clk 0:02:59]} 3. e5 {[%clk 0:02:57]}  c5 {[%clk 0:02:59]} 4. c3 {[%clk 0:02:57]}  Nc6 {[%clk 0:03:00]} 5. Nf3 {[%clk 0:02:57]}  Nh6 {[%clk 0:02:59]} 6. Bd3 {[%clk 0:02:47]}  Qb6 {[%clk 0:02:57]} 7. dxc5 {[%clk 0:02:41]}  Bxc5 {[%clk 0:02:55]} 8. b4 {[%clk 0:02:41]}  Be7 {[%clk 0:02:54]} 9. O-O {[%clk 0:02:36]}  Ng4 {[%clk 0:02:45]} 10. Qe2 {[%clk 0:02:33]}  h5 {[%clk 0:02:43]} 11. h3 {[%clk 0:02:29]}  Nh6 {[%clk 0:02:40]} 12. Re1 {[%clk 0:02:26]}  Bd7 {[%clk 0:02:36]} 13. a4 {[%clk 0:02:24]}  g6 {[%clk 0:02:31]} 14. a5 {[%clk 0:02:22]}  Qd8 {[%clk 0:02:27]} 15. b5 {[%clk 0:02:22]}  Nb8 {[%clk 0:02:27]} 16. c4 {[%clk 0:02:19]}  dxc4 {[%clk 0:02:19]} 17. Bxc4 {[%clk 0:02:19]}  Nf5 {[%clk 0:02:15]} 18. Nc3 {[%clk 0:02:16]}  a6 {[%clk 0:02:05]} 19. b6 {[%clk 0:02:04]}  Nc6 {[%clk 0:02:04]} 20. Ne4 {[%clk 0:02:02]}  Rc8 {[%clk 0:01:51]} 21. Ba3 {[%clk 0:01:58]}  O-O {[%clk 0:01:45]} 22. Nf6+ {[%clk 0:01:51]}  Bxf6 {[%clk 0:01:44]} 23. Bxf8 {[%clk 0:01:51]}  Bg7 {[%clk 0:01:35]} 24. Bxg7 {[%clk 0:01:47]}  Kxg7 {[%clk 0:01:36]} 25. Red1 {[%clk 0:01:46]}  Qe8 {[%clk 0:01:33]} 26. g4 {[%clk 0:01:45]}  hxg4 {[%clk 0:01:28]} 27. hxg4 {[%clk 0:01:45]}  Nh6 {[%clk 0:01:27]} 28. Qe4 {[%clk 0:01:43]}  Nb4 {[%clk 0:01:17]} 29. Qf4 {[%clk 0:01:35]}  Bc6 {[%clk 0:01:05]} 30. Qf6+ {[%clk 0:01:27]}  Kg8 {[%clk 0:01:04]} 31. Be2 {[%clk 0:01:20]}  Nd5 {[%clk 0:00:58]} 32. Qg5 {[%clk 0:01:14]}  Kg7 {[%clk 0:00:56]} 33. Rac1 {[%clk 0:01:01]}  Qe7 {[%clk 0:00:52]} 34. Qxe7 {[%clk 0:00:52]}  Nxe7 {[%clk 0:00:53]} 35. Nd4 {[%clk 0:00:51]}  Bd5 {[%clk 0:00:39]} 36. Rxc8 {[%clk 0:00:49]}  Nxc8 {[%clk 0:00:40]} 37. Rc1 {[%clk 0:00:49]}  Ne7 {[%clk 0:00:37]} 38. Rc7 {[%clk 0:00:47]}  Kf8 {[%clk 0:00:36]} 39. f3 {[%clk 0:00:43]}  Ke8 {[%clk 0:00:26]} 40. Kf2 {[%clk 0:00:41]}  Kd8 {[%clk 0:00:24]} 41. Kg3 {[%clk 0:00:41]}  Nhg8 {[%clk 0:00:19]} 42. Kh4 {[%clk 0:00:38]}  f6 {[%clk 0:00:19]} 43. f4 {[%clk 0:00:37]}  g5+ {[%clk 0:00:18]} 44. fxg5 {[%clk 0:00:27]}  fxe5 {[%clk 0:00:18]} 45. Nxe6+ {[%clk 0:00:21]}  Bxe6 {[%clk 0:00:15]} 46. Rxb7 {[%clk 0:00:21]}  Ng6+ {[%clk 0:00:14]} 47. Kg3 {[%clk 0:00:21]}  Nf4 {[%clk 0:00:13]} 48. Bxa6 {[%clk 0:00:20]}  Bd5 {[%clk 0:00:10]} 49. Rg7 {[%clk 0:00:16]}  Ne7 {[%clk 0:00:09]} 50. b7 {[%clk 0:00:16]}  Bxb7 {[%clk 0:00:08]} 51. Bxb7 {[%clk 0:00:16]}  Ned5 {[%clk 0:00:08]} 52. a6 {[%clk 0:00:15]}  Ne2+ {[%clk 0:00:05]} 53. Kf2 {[%clk 0:00:15]}  Nd4 {[%clk 0:00:03]} 54. a7 {[%clk 0:00:15]} 1-0

[Event "December 5 Early 2023"]
[Site "https://www.chess.com"]
[Date "2023.12.05"]
[Round "3"]
[White "Smirnov, Timofey"]
[Black "Georg, Heinz"]
[Result "0-1"]
[Board "235"]
[TimeControl "180+1"]
[WhiteFideId "24176427"]
[BlackFideId "4607295"]
[WhiteElo "2046"]
[BlackElo "2334"]
[WhiteTeam "RUS"]
[BlackTeam "GER"]
[WhiteClock "0:00:00"]
[BlackClock "0:00:33"]

1. d4 {[%clk 0:02:57]}  f5 {[%clk 0:02:59]} 2. h3 {[%clk 0:02:56]}  d5 {[%clk 0:02:58]} 3. Nf3 {[%clk 0:02:42]}  Nf6 {[%clk 0:02:58]} 4. e3 {[%clk 0:02:40]}  e6 {[%clk 0:02:58]} 5. Nbd2 {[%clk 0:02:39]}  Be7 {[%clk 0:02:55]} 6. c4 {[%clk 0:02:38]}  c6 {[%clk 0:02:55]} 7. Ne5 {[%clk 0:02:35]}  O-O {[%clk 0:02:54]} 8. g4 {[%clk 0:02:34]}  Nbd7 {[%clk 0:02:50]} 9. Ndf3 {[%clk 0:02:32]}  Ne4 {[%clk 0:02:46]} 10. gxf5 {[%clk 0:02:26]}  exf5 {[%clk 0:02:46]} 11. cxd5 {[%clk 0:02:23]}  cxd5 {[%clk 0:02:45]} 12. Qb3 {[%clk 0:02:12]}  Nxe5 {[%clk 0:02:32]} 13. Nxe5 {[%clk 0:02:12]}  Qa5+ {[%clk 0:02:32]} 14. Ke2 {[%clk 0:01:58]}  Bh4 {[%clk 0:02:11]} 15. Nd3 {[%clk 0:01:50]}  Bd7 {[%clk 0:02:01]} 16. Rg1 {[%clk 0:01:49]}  Qb5 {[%clk 0:01:54]} 17. Qxb5 {[%clk 0:01:50]}  Bxb5 {[%clk 0:01:54]} 18. f3 {[%clk 0:01:24]}  Ng3+ {[%clk 0:01:47]} 19. Kd2 {[%clk 0:01:18]}  Nxf1+ {[%clk 0:01:46]} 20. Rxf1 {[%clk 0:01:18]}  Rac8 {[%clk 0:01:39]} 21. b3 {[%clk 0:01:14]}  f4 {[%clk 0:01:35]} 22. exf4 {[%clk 0:01:12]}  Bf6 {[%clk 0:01:34]} 23. Ba3 {[%clk 0:01:09]}  Rfe8 {[%clk 0:01:33]} 24. Rac1 {[%clk 0:01:00]}  Bxd4 {[%clk 0:01:28]} 25. Rfe1 {[%clk 0:00:49]}  Bb6 {[%clk 0:01:00]} 26. Ne5 {[%clk 0:00:42]}  Rxc1 {[%clk 0:00:55]} 27. Rxc1 {[%clk 0:00:39]}  Bd4 {[%clk 0:00:54]} 28. Bd6 {[%clk 0:00:31]}  Rd8 {[%clk 0:00:48]} 29. Bc7 {[%clk 0:00:26]}  Rc8 {[%clk 0:00:46]} 30. a4 {[%clk 0:00:25]}  Be8 {[%clk 0:00:43]} 31. Kd3 {[%clk 0:00:21]}  Bb6 {[%clk 0:00:41]} 32. Bxb6 {[%clk 0:00:02]}  Rxc1 {[%clk 0:00:40]} 33. Kd2 {[%clk 0:00:02]}  Rb1 {[%clk 0:00:36]} 34. Bd4 {[%clk 0:00:02]}  Rxb3 {[%clk 0:00:34]} 35. Kc2 {[%clk 0:00:00]}  Bxa4 {[%clk 0:00:33]} 0-1

[Event "December 5 Early 2023"]
[Site "https://www.chess.com"]
[Date "2023.12.05"]
[Round "3"]
[White "titledsquirrel2007"]
[Black "Reinecke, Katharina"]
[Result "0-1"]
[Board "237"]
[TimeControl "180+1"]
[BlackFideId "12929727"]
[WhiteElo "2329"]
[BlackElo "2011"]
[BlackTeam "GER"]
[WhiteClock "0:00:14"]
[BlackClock "0:00:07"]

1. f4 {[%clk 0:03:00]}  Nh6 {[%clk 0:02:57]} 2. Nf3 {[%clk 0:02:58]}  g6 {[%clk 0:02:57]} 3. d4 {[%clk 0:02:58]}  Bg7 {[%clk 0:02:57]} 4. e4 {[%clk 0:02:57]}  O-O {[%clk 0:02:56]} 5. c4 {[%clk 0:02:55]}  d6 {[%clk 0:02:55]} 6. Nc3 {[%clk 0:02:56]}  c5 {[%clk 0:02:54]} 7. d5 {[%clk 0:02:56]}  e6 {[%clk 0:02:54]} 8. Be2 {[%clk 0:02:56]}  f5 {[%clk 0:02:21]} 9. O-O {[%clk 0:02:53]}  Bxc3 {[%clk 0:02:14]} 10. bxc3 {[%clk 0:02:53]}  fxe4 {[%clk 0:02:14]} 11. Ng5 {[%clk 0:02:50]}  exd5 {[%clk 0:02:07]} 12. cxd5 {[%clk 0:02:46]}  Qe7 {[%clk 0:01:55]} 13. c4 {[%clk 0:02:30]}  Nd7 {[%clk 0:01:48]} 14. Bb2 {[%clk 0:02:28]}  Nf6 {[%clk 0:01:46]} 15. Qc2 {[%clk 0:02:18]}  Nf5 {[%clk 0:01:39]} 16. Rfe1 {[%clk 0:01:53]}  Bd7 {[%clk 0:01:29]} 17. Bf1 {[%clk 0:01:45]}  Rae8 {[%clk 0:01:27]} 18. Rad1 {[%clk 0:01:37]}  e3 {[%clk 0:01:17]} 19. Be2 {[%clk 0:01:10]}  h6 {[%clk 0:01:14]} 20. Nf3 {[%clk 0:01:10]}  Ne4 {[%clk 0:01:10]} 21. Bd3 {[%clk 0:01:01]}  Nf2 {[%clk 0:01:03]} 22. Qc3 {[%clk 0:00:45]}  Qg7 {[%clk 0:00:43]} 23. Qb3 {[%clk 0:00:35]}  Nd4 {[%clk 0:00:40]} 24. Nxd4 {[%clk 0:00:32]}  cxd4 {[%clk 0:00:39]} 25. g3 {[%clk 0:00:27]}  Nxd1 {[%clk 0:00:38]} 26. Qxd1 {[%clk 0:00:24]}  Bh3 {[%clk 0:00:28]} 27. Be2 {[%clk 0:00:23]}  h5 {[%clk 0:00:27]} 28. Bxd4 {[%clk 0:00:22]}  Qf7 {[%clk 0:00:22]} 29. Qb3 {[%clk 0:00:21]}  Re7 {[%clk 0:00:20]} 30. Qd3 {[%clk 0:00:18]}  Qf5 {[%clk 0:00:20]} 31. Qc3 {[%clk 0:00:18]}  Qe4 {[%clk 0:00:19]} 32. Bf1 {[%clk 0:00:16]}  Bxf1 {[%clk 0:00:18]} 33. Rxf1 {[%clk 0:00:17]}  e2 {[%clk 0:00:18]} 34. Re1 {[%clk 0:00:17]}  Rfe8 {[%clk 0:00:15]} 35. Bf2 {[%clk 0:00:17]}  Qf5 {[%clk 0:00:13]} 36. Bxa7 {[%clk 0:00:17]}  Qg4 {[%clk 0:00:13]} 37. Bf2 {[%clk 0:00:17]}  Qh3 {[%clk 0:00:12]} 38. Qf3 {[%clk 0:00:17]}  Qg4 {[%clk 0:00:12]} 39. Qd3 {[%clk 0:00:16]}  Qf5 {[%clk 0:00:11]} 40. Qd4 {[%clk 0:00:16]}  Qc2 {[%clk 0:00:10]} 41. Kg2 {[%clk 0:00:16]}  Qxa2 {[%clk 0:00:10]} 42. Qf6 {[%clk 0:00:15]}  Rf7 {[%clk 0:00:07]} 43. Bd4 {[%clk 0:00:14]}  Rxf6 {[%clk 0:00:07]} 0-1

[Event "December 5 Early 2023"]
[Site "https://www.chess.com"]
[Date "2023.12.05"]
[Round "3"]
[White "IranianCheetah"]
[Black "Saim, Mohamed Ilias"]
[Result "1-0"]
[Board "239"]
[TimeControl "180+1"]
[BlackFideId "7900465"]
[WhiteElo "2325"]
[BlackElo "2001"]
[BlackTeam "ALG"]
[WhiteClock "0:00:46"]
[BlackClock "0:00:00"]

1. e4 {[%clk 0:03:00]}  c6 {[%clk 0:03:00]} 2. d4 {[%clk 0:02:59]}  d5 {[%clk 0:03:00]} 3. Nc3 {[%clk 0:02:59]}  a6 {[%clk 0:03:00]} 4. Nf3 {[%clk 0:02:56]}  Bg4 {[%clk 0:03:00]} 5. h3 {[%clk 0:02:50]}  Bh5 {[%clk 0:03:00]} 6. Be2 {[%clk 0:02:44]}  e6 {[%clk 0:03:00]} 7. O-O {[%clk 0:02:44]}  Nf6 {[%clk 0:03:00]} 8. exd5 {[%clk 0:02:42]}  cxd5 {[%clk 0:02:59]} 9. Ne5 {[%clk 0:02:42]}  Bxe2 {[%clk 0:02:57]} 10. Nxe2 {[%clk 0:02:42]}  Nc6 {[%clk 0:02:55]} 11. Bg5 {[%clk 0:02:42]}  Bd6 {[%clk 0:02:52]} 12. Nxc6 {[%clk 0:02:35]}  bxc6 {[%clk 0:02:52]} 13. c4 {[%clk 0:02:35]}  O-O {[%clk 0:02:39]} 14. c5 {[%clk 0:02:28]}  Be7 {[%clk 0:02:39]} 15. Bf4 {[%clk 0:02:17]}  Ne4 {[%clk 0:02:24]} 16. f3 {[%clk 0:02:16]}  Nf6 {[%clk 0:02:22]} 17. b4 {[%clk 0:02:16]}  Ra7 {[%clk 0:02:10]} 18. a4 {[%clk 0:02:15]}  Qa8 {[%clk 0:02:07]} 19. Qd3 {[%clk 0:02:10]}  Bd8 {[%clk 0:02:03]} 20. Bd6 {[%clk 0:02:01]}  Re8 {[%clk 0:01:59]} 21. g4 {[%clk 0:02:00]}  Qb7 {[%clk 0:01:41]} 22. b5 {[%clk 0:01:45]}  axb5 {[%clk 0:01:39]} 23. axb5 {[%clk 0:01:46]}  Rxa1 {[%clk 0:01:26]} 24. Rxa1 {[%clk 0:01:47]}  Bc7 {[%clk 0:01:01]} 25. Bxc7 {[%clk 0:01:19]}  Qxc7 {[%clk 0:01:00]} 26. b6 {[%clk 0:01:19]}  Qb8 {[%clk 0:00:44]} 27. f4 {[%clk 0:01:15]}  Ne4 {[%clk 0:00:34]} 28. Ra7 {[%clk 0:01:12]}  Kf8 {[%clk 0:00:26]} 29. Kg2 {[%clk 0:01:12]}  h5 {[%clk 0:00:18]} 30. gxh5 {[%clk 0:01:07]}  Nf6 {[%clk 0:00:14]} 31. Kf3 {[%clk 0:01:00]}  Kg8 {[%clk 0:00:10]} 32. h6 {[%clk 0:00:54]}  gxh6 {[%clk 0:00:02]} 33. Qb1 {[%clk 0:00:49]}  Nh5 {[%clk 0:00:00]} 34. Qg1+ {[%clk 0:00:46]} 1-0

[Event "December 5 Early 2023"]
[Site "https://www.chess.com"]
[Date "2023.12.05"]
[Round "3"]
[White "De Arruda, Leandro Formes"]
[Black "Tilahun , Abel Mathewos"]
[Result "1-0"]
[Board "240"]
[TimeControl "180+1"]
[WhiteFideId "22722009"]
[BlackFideId "15702391"]
[WhiteElo "2323"]
[BlackElo "1997"]
[WhiteTeam "BRA"]
[BlackTeam "ETH"]
[WhiteClock "0:00:05"]
[BlackClock "0:00:00"]

1. d4 {[%clk 0:02:58]}  d5 {[%clk 0:02:59]} 2. Nf3 {[%clk 0:02:58]}  Nf6 {[%clk 0:02:58]} 3. e3 {[%clk 0:02:58]}  e6 {[%clk 0:02:57]} 4. Bd3 {[%clk 0:02:58]}  Be7 {[%clk 0:02:53]} 5. Nbd2 {[%clk 0:02:58]}  O-O {[%clk 0:02:53]} 6. O-O {[%clk 0:02:58]}  b6 {[%clk 0:02:53]} 7. Ne5 {[%clk 0:02:58]}  Bb7 {[%clk 0:02:53]} 8. f4 {[%clk 0:02:58]}  Ne4 {[%clk 0:02:51]} 9. Qf3 {[%clk 0:02:56]}  f5 {[%clk 0:02:51]} 10. Qh3 {[%clk 0:02:55]}  Nd7 {[%clk 0:02:39]} 11. Ndf3 {[%clk 0:02:45]}  Qe8 {[%clk 0:02:28]} 12. g4 {[%clk 0:02:23]}  Nxe5 {[%clk 0:02:18]} 13. Nxe5 {[%clk 0:02:23]}  Bd6 {[%clk 0:02:15]} 14. Bxe4 {[%clk 0:02:14]}  dxe4 {[%clk 0:02:04]} 15. g5 {[%clk 0:02:04]}  Ba6 {[%clk 0:01:50]} 16. Rd1 {[%clk 0:01:59]}  Bxe5 {[%clk 0:01:47]} 17. fxe5 {[%clk 0:01:55]}  Be2 {[%clk 0:01:40]} 18. Re1 {[%clk 0:01:52]}  Bf3 {[%clk 0:01:29]} 19. Bd2 {[%clk 0:01:49]}  Qc6 {[%clk 0:01:19]} 20. c3 {[%clk 0:01:46]}  Qb5 {[%clk 0:01:16]} 21. Bc1 {[%clk 0:01:33]}  Rad8 {[%clk 0:01:10]} 22. Qf1 {[%clk 0:01:31]}  Qe8 {[%clk 0:01:06]} 23. Qh3 {[%clk 0:01:18]}  Qb5 {[%clk 0:00:59]} 24. Qg3 {[%clk 0:01:13]}  c5 {[%clk 0:00:55]} 25. h4 {[%clk 0:01:12]}  Bh5 {[%clk 0:00:35]} 26. Kh2 {[%clk 0:01:04]}  Qd3 {[%clk 0:00:33]} 27. Qg2 {[%clk 0:01:00]}  Bf3 {[%clk 0:00:29]} 28. Qd2 {[%clk 0:00:55]}  Qb5 {[%clk 0:00:24]} 29. b3 {[%clk 0:00:53]}  Qe8 {[%clk 0:00:22]} 30. Bb2 {[%clk 0:00:46]}  cxd4 {[%clk 0:00:20]} 31. cxd4 {[%clk 0:00:47]}  Qh5 {[%clk 0:00:18]} 32. Qf2 {[%clk 0:00:46]}  Rc8 {[%clk 0:00:18]} 33. Rac1 {[%clk 0:00:45]}  Rfd8 {[%clk 0:00:17]} 34. Qg3 {[%clk 0:00:42]}  Qf7 {[%clk 0:00:15]} 35. a3 {[%clk 0:00:35]}  Qb7 {[%clk 0:00:14]} 36. Qf2 {[%clk 0:00:34]}  Qd5 {[%clk 0:00:14]} 37. b4 {[%clk 0:00:27]}  Qa2 {[%clk 0:00:12]} 38. Qd2 {[%clk 0:00:27]}  Qb3 {[%clk 0:00:11]} 39. Rf1 {[%clk 0:00:18]}  Qd5 {[%clk 0:00:10]} 40. Rc3 {[%clk 0:00:17]}  Qa2 {[%clk 0:00:10]} 41. Rfc1 {[%clk 0:00:17]}  Rxc3 {[%clk 0:00:09]} 42. Qxc3 {[%clk 0:00:17]}  Qd5 {[%clk 0:00:08]} 43. Qc4 {[%clk 0:00:17]}  Qb7 {[%clk 0:00:07]} 44. Qxe6+ {[%clk 0:00:16]}  Kh8 {[%clk 0:00:07]} 45. d5 {[%clk 0:00:11]}  Qb8 {[%clk 0:00:05]} 46. d6 {[%clk 0:00:10]}  Re8 {[%clk 0:00:05]} 47. Qf7 {[%clk 0:00:09]}  Rf8 {[%clk 0:00:05]} 48. Qe7 {[%clk 0:00:09]}  Re8 {[%clk 0:00:05]} 49. Qc7 {[%clk 0:00:09]}  Qa8 {[%clk 0:00:04]} 50. d7 {[%clk 0:00:08]}  Rd8 {[%clk 0:00:04]} 51. e6 {[%clk 0:00:07]}  h6 {[%clk 0:00:04]} 52. e7 {[%clk 0:00:07]}  Qd5 {[%clk 0:00:04]} 53. exd8=Q+ {[%clk 0:00:07]}  Kh7 {[%clk 0:00:05]} 54. g6+ {[%clk 0:00:06]}  Kxg6 {[%clk 0:00:05]} 55. Qe8+ {[%clk 0:00:05]}  Kh7 {[%clk 0:00:04]} 56. Rc2 {[%clk 0:00:04]}  Qd1 {[%clk 0:00:03]} 57. Qg6+ {[%clk 0:00:02]}  Kxg6 {[%clk 0:00:03]} 58. Rg2+ {[%clk 0:00:01]}  Bxg2 {[%clk 0:00:02]} 59. Kxg2 {[%clk 0:00:02]}  Qf3+ {[%clk 0:00:02]} 60. Kg1 {[%clk 0:00:03]}  Qg3+ {[%clk 0:00:02]} 61. Kf1 {[%clk 0:00:03]}  Qf3+ {[%clk 0:00:03]} 62. Ke1 {[%clk 0:00:03]}  Qxe3+ {[%clk 0:00:03]} 63. Kd1 {[%clk 0:00:04]}  Qd3+ {[%clk 0:00:03]} 64. Kc1 {[%clk 0:00:05]}  Qe3+ {[%clk 0:00:03]} 65. Kc2 {[%clk 0:00:05]}  Qe2+ {[%clk 0:00:03]} 66. Kb3 {[%clk 0:00:05]}  Qd3+ {[%clk 0:00:03]} 67. Qc3 {[%clk 0:00:06]}  Qxd7 {[%clk 0:00:03]} 68. Qc4 {[%clk 0:00:06]}  Kh5 {[%clk 0:00:02]} 69. Qe2+ {[%clk 0:00:06]}  Kg6 {[%clk 0:00:00]} 70. h5+ {[%clk 0:00:05]} 1-0

[Event "December 5 Early 2023"]
[Site "https://www.chess.com"]
[Date "2023.12.05"]
[Round "3"]
[White "Phillips, Rene"]
[Black "Zivic, Dragan"]
[Result "0-1"]
[Board "241"]
[TimeControl "180+1"]
[WhiteFideId "2056275"]
[BlackFideId "904740"]
[WhiteElo "1904"]
[BlackElo "2320"]
[WhiteTeam "USA"]
[BlackTeam "SRB"]
[WhiteClock "0:00:00"]
[BlackClock "0:01:17"]

1. Nf3 {[%clk 0:02:52]}  Nf6 {[%clk 0:02:59]} 2. d4 {[%clk 0:02:52]}  e6 {[%clk 0:02:58]} 3. Bf4 {[%clk 0:02:52]}  c5 {[%clk 0:02:56]} 4. e3 {[%clk 0:02:51]}  cxd4 {[%clk 0:02:54]} 5. exd4 {[%clk 0:02:51]}  b6 {[%clk 0:02:53]} 6. c3 {[%clk 0:02:50]}  Bb7 {[%clk 0:02:52]} 7. Nbd2 {[%clk 0:02:51]}  Be7 {[%clk 0:02:49]} 8. Bd3 {[%clk 0:02:50]}  O-O {[%clk 0:02:47]} 9. Qe2 {[%clk 0:02:51]}  d6 {[%clk 0:02:38]} 10. h3 {[%clk 0:02:50]}  Nbd7 {[%clk 0:02:34]} 11. O-O {[%clk 0:02:49]}  a6 {[%clk 0:02:31]} 12. Rfe1 {[%clk 0:02:49]}  Re8 {[%clk 0:02:28]} 13. Ng5 {[%clk 0:02:48]}  Nf8 {[%clk 0:02:26]} 14. Nde4 {[%clk 0:02:41]}  Nd5 {[%clk 0:02:22]} 15. Bd2 {[%clk 0:02:21]}  f5 {[%clk 0:02:15]} 16. Qh5 {[%clk 0:01:39]}  fxe4 {[%clk 0:02:10]} 17. Qf7+ {[%clk 0:01:24]}  Kh8 {[%clk 0:02:08]} 18. Bxe4 {[%clk 0:01:08]}  Bxg5 {[%clk 0:01:56]} 19. Bxg5 {[%clk 0:01:04]}  Qxg5 {[%clk 0:01:47]} 20. Qxb7 {[%clk 0:01:02]}  Nf4 {[%clk 0:01:41]} 21. Kh1 {[%clk 0:00:20]}  d5 {[%clk 0:01:36]} 22. Bf3 {[%clk 0:00:20]}  Qf6 {[%clk 0:01:31]} 23. Re3 {[%clk 0:00:16]}  N8g6 {[%clk 0:01:28]} 24. Qxb6 {[%clk 0:00:15]}  Rab8 {[%clk 0:01:25]} 25. Qc6 {[%clk 0:00:10]}  Nh4 {[%clk 0:01:22]} 26. Rae1 {[%clk 0:00:00]}  h6 {[%clk 0:01:17]} 0-1

[Event "December 5 Early 2023"]
[Site "https://www.chess.com"]
[Date "2023.12.05"]
[Round "3"]
[White "Skiadopoulos, Nikolaos"]
[Black "Franchini, Gabriele"]
[Result "0-1"]
[Board "242"]
[TimeControl "180+1"]
[WhiteFideId "4200772"]
[BlackFideId "806790"]
[WhiteElo "1770"]
[BlackElo "2318"]
[WhiteTeam "GRE"]
[BlackTeam "ITA"]
[WhiteClock "0:01:23"]
[BlackClock "0:00:55"]

1. e4 {[%clk 0:03:00]}  e6 {[%clk 0:02:58]} 2. d4 {[%clk 0:03:00]}  d5 {[%clk 0:02:59]} 3. e5 {[%clk 0:03:00]}  c5 {[%clk 0:02:59]} 4. c3 {[%clk 0:03:00]}  Nc6 {[%clk 0:03:00]} 5. Nf3 {[%clk 0:03:00]}  Bd7 {[%clk 0:03:00]} 6. dxc5 {[%clk 0:02:59]}  Bxc5 {[%clk 0:02:58]} 7. b4 {[%clk 0:03:00]}  Bb6 {[%clk 0:02:45]} 8. b5 {[%clk 0:03:00]}  Na5 {[%clk 0:02:43]} 9. Bd3 {[%clk 0:03:00]}  Rc8 {[%clk 0:02:35]} 10. O-O {[%clk 0:02:59]}  Ne7 {[%clk 0:02:27]} 11. a4 {[%clk 0:02:48]}  Ng6 {[%clk 0:02:26]} 12. Ra2 {[%clk 0:02:44]}  Qc7 {[%clk 0:02:25]} 13. Re1 {[%clk 0:02:41]}  h6 {[%clk 0:02:13]} 14. Bxg6 {[%clk 0:02:34]}  fxg6 {[%clk 0:02:13]} 15. Qd3 {[%clk 0:02:34]}  Kf7 {[%clk 0:02:08]} 16. Nh4 {[%clk 0:02:22]}  Qc4 {[%clk 0:01:52]} 17. Qxg6+ {[%clk 0:02:19]}  Kg8 {[%clk 0:01:33]} 18. Rae2 {[%clk 0:02:13]}  Qxh4 {[%clk 0:01:31]} 19. Be3 {[%clk 0:01:58]}  Bxe3 {[%clk 0:01:26]} 20. Rxe3 {[%clk 0:01:58]}  Qg5 {[%clk 0:01:27]} 21. Qd3 {[%clk 0:01:54]}  Nc4 {[%clk 0:01:14]} 22. Rg3 {[%clk 0:01:53]}  Qf5 {[%clk 0:01:12]} 23. Qxf5 {[%clk 0:01:51]}  exf5 {[%clk 0:01:13]} 24. e6 {[%clk 0:01:50]}  Re8 {[%clk 0:01:00]} 25. Rd3 {[%clk 0:01:23]}  Rxe6 {[%clk 0:00:55]} 0-1